Workbook

Sheet Toplu Netten Brüte
A1: TC | B1: Adı ve Soyadı | C1: Net Ücret
A3: 1234567890 | B3: ali01 | C3: 5500
A4: 2345678901 | B4: ali02 | C4: 6000
A5: 3456789912 | B5: ali03 | C5: 6500

Sheet Toplu Brütten Nete
A1: TC | B1: Adı ve Soyadı | C1: Brüt Ücret
A3: 1234567890 | B3: ali01 | C3: 5500
A4: 2345678901 | B4: ali02 | C4: 6000
A5: 3456789912 | B5: ali03 | C5: 6500

Sheet Net>Brüt
A1: 2022 | B1: SGK MATRAH | C1: SGK İŞÇİ | D1: MATRAH | E1: KÜMÜLATİF GV MATRAH | F1: HESAPLANAN GELİR VERGİSİ | G1: ASGARİ ÜCRET KÜMÜLATİF MATRAH | H1: ASGARİ ÜCRETİN VERGİSİ | I1: İSTİSNA MATRAH | J1: KESİLECEK GELİR VERGİSİ | K1: DAMGA VERGİSİ | L1: NET ÜCRET | M1: SGK İŞVEREN | N1: İŞVEREN İŞSİZLİK | O1: İŞVEREN TOPLAM MALİYET | Q1: Hedef Net Ücret | R1: 5500
A2: ocak | B2: 6747.715992 | C2: =IF(B2<37530,B2*0.15,37530*0.15) -> 1012.157399 | D2: =Tablo234[[#This Row],[SGK MATRAH]]-Tablo234[[#This Row],[SGK İŞÇİ]] -> 5735.558593 | E2: =D2 -> 5735.558593 | F2: =gelir_vergisi(Tablo234[[#This Row],[MATRAH]],Tablo234[[#This Row],[KÜMÜLATİF GV MATRAH]]) -> 860.33379 | G2: 4253.4 | H2: 638.01 | I2: 4253.4 | J2: =Tablo234[[#This Row],[HESAPLANAN GELİR VERGİSİ]]-Tablo234[[#This Row],[ASGARİ ÜCRETİN VERGİSİ]] -> 222.32379 | K2: =(Tablo234[[#This Row],[SGK MATRAH]]-5004)*0.00759 -> 13.23480438 | L2: =Tablo234[[#This Row],[SGK MATRAH]]-Tablo234[[#This Row],[SGK İŞÇİ]]-Tablo234[[#This Row],[KESİLECEK GELİR VERGİSİ]]-Tablo234[[#This Row],[DAMGA VERGİSİ]] -> 5499.999999 | M2: =IF(B2<37530,B2*0.155,37530*0.155) -> 1045.895979 | N2: =IF(B2<37530,B2*0.02,37530*0.02) -> 134.9543198 | O2: =B2+M2+N2 -> 7928.566291
A3: şubat | B3: 6747.715992 | C3: 1012.157399 | D3: =Tablo234[[#This Row],[SGK MATRAH]]-Tablo234[[#This Row],[SGK İŞÇİ]] -> 5735.558593 | E3: =D3+E2 -> 11471.11719 | F3: =gelir_vergisi(Tablo234[[#This Row],[MATRAH]],Tablo234[[#This Row],[KÜMÜLATİF GV MATRAH]]) -> 860.33379 | G3: =G2+4253.4 -> 8506.8 | H3: 638.01 | I3: 4253.4 | J3: =Tablo234[[#This Row],[HESAPLANAN GELİR VERGİSİ]]-Tablo234[[#This Row],[ASGARİ ÜCRETİN VERGİSİ]] -> 222.32379 | K3: =(Tablo234[[#This Row],[SGK MATRAH]]-5004)*0.00759 -> 13.23480438 | L3: =Tablo234[[#This Row],[SGK MATRAH]]-Tablo234[[#This Row],[SGK İŞÇİ]]-Tablo234[[#This Row],[KESİLECEK GELİR VERGİSİ]]-Tablo234[[#This Row],[DAMGA VERGİSİ]] -> 5499.999999 | M3: 1045.895979 | N3: 134.9543198 | O3: 7928.566291
A4: mart | B4: 6747.715992 | C4: 1012.157399 | D4: =Tablo234[[#This Row],[SGK MATRAH]]-Tablo234[[#This Row],[SGK İŞÇİ]] -> 5735.558593 | E4: 17206.67578 | F4: =gelir_vergisi(Tablo234[[#This Row],[MATRAH]],Tablo234[[#This Row],[KÜMÜLATİF GV MATRAH]]) -> 860.33379 | G4: =G3+4253.4 -> 12760.2 | H4: 638.01 | I4: 4253.4 | J4: =Tablo234[[#This Row],[HESAPLANAN GELİR VERGİSİ]]-Tablo234[[#This Row],[ASGARİ ÜCRETİN VERGİSİ]] -> 222.32379 | K4: =(Tablo234[[#This Row],[SGK MATRAH]]-5004)*0.00759 -> 13.23480438 | L4: =Tablo234[[#This Row],[SGK MATRAH]]-Tablo234[[#This Row],[SGK İŞÇİ]]-Tablo234[[#This Row],[KESİLECEK GELİR VERGİSİ]]-Tablo234[[#This Row],[DAMGA VERGİSİ]] -> 5499.999999 | M4: 1045.895979 | N4: 134.9543198 | O4: 7928.566291
A5: nisan | B5: 6747.715992 | C5: 1012.157399 | D5: =Tablo234[[#This Row],[SGK MATRAH]]-Tablo234[[#This Row],[SGK İŞÇİ]] -> 5735.558593 | E5: 22942.23437 | F5: =gelir_vergisi(Tablo234[[#This Row],[MATRAH]],Tablo234[[#This Row],[KÜMÜLATİF GV MATRAH]]) -> 860.33379 | G5: 17013.6 | H5: 638.01 | I5: 4253.4 | J5: =Tablo234[[#This Row],[HESAPLANAN GELİR VERGİSİ]]-Tablo234[[#This Row],[ASGARİ ÜCRETİN VERGİSİ]] -> 222.32379 | K5: =(Tablo234[[#This Row],[SGK MATRAH]]-5004)*0.00759 -> 13.23480438 | L5: =Tablo234[[#This Row],[SGK MATRAH]]-Tablo234[[#This Row],[SGK İŞÇİ]]-Tablo234[[#This Row],[KESİLECEK GELİR VERGİSİ]]-Tablo234[[#This Row],[DAMGA VERGİSİ]] -> 5499.999999 | M5: 1045.895979 | N5: 134.9543198 | O5: 7928.566291
A6: mayıs | B6: 6747.715992 | C6: 1012.157399 | D6: =Tablo234[[#This Row],[SGK MATRAH]]-Tablo234[[#This Row],[SGK İŞÇİ]] -> 5735.558593 | E6: 28677.79297 | F6: =gelir_vergisi(Tablo234[[#This Row],[MATRAH]],Tablo234[[#This Row],[KÜMÜLATİF GV MATRAH]]) -> 860.33379 | G6: 21267 | H6: 638.01 | I6: 4253.4 | J6: =Tablo234[[#This Row],[HESAPLANAN GELİR VERGİSİ]]-Tablo234[[#This Row],[ASGARİ ÜCRETİN VERGİSİ]] -> 222.32379 | K6: =(Tablo234[[#This Row],[SGK MATRAH]]-5004)*0.00759 -> 13.23480438 | L6: =Tablo234[[#This Row],[SGK MATRAH]]-Tablo234[[#This Row],[SGK İŞÇİ]]-Tablo234[[#This Row],[KESİLECEK GELİR VERGİSİ]]-Tablo234[[#This Row],[DAMGA VERGİSİ]] -> 5499.999999 | M6: 1045.895979 | N6: 134.9543198 | O6: 7928.566291
A7: haziran | B7: 6927.171351 | C7: 1039.075703 | D7: =Tablo234[[#This Row],[SGK MATRAH]]-Tablo234[[#This Row],[SGK İŞÇİ]] -> 5888.095648 | E7: 34565.88862 | F7: =gelir_vergisi(Tablo234[[#This Row],[MATRAH]],Tablo234[[#This Row],[KÜMÜLATİF GV MATRAH]]) -> 1011.50877 | G7: 25520.4 | H7: 638.01 | I7: 4253.4 | J7: =Tablo234[[#This Row],[HESAPLANAN GELİR VERGİSİ]]-Tablo234[[#This Row],[ASGARİ ÜCRETİN VERGİSİ]] -> 373.49877 | K7: =(Tablo234[[#This Row],[SGK MATRAH]]-5004)*0.00759 -> 14.59687055 | L7: =Tablo234[[#This Row],[SGK MATRAH]]-Tablo234[[#This Row],[SGK İŞÇİ]]-Tablo234[[#This Row],[KESİLECEK GELİR VERGİSİ]]-Tablo234[[#This Row],[DAMGA VERGİSİ]] -> 5500.000008 | M7: 1073.711559 | N7: 138.543427 | O7: 8139.426337
A8: temmuz | B8: 7174.208652 | C8: 1076.131298 | D8: =Tablo234[[#This Row],[SGK MATRAH]]-Tablo234[[#This Row],[SGK İŞÇİ]] -> 6098.077355 | E8: 40663.96597 | F8: =gelir_vergisi(Tablo234[[#This Row],[MATRAH]],Tablo234[[#This Row],[KÜMÜLATİF GV MATRAH]]) -> 1219.61548 | G8: 29773.8 | H8: 638.01 | I8: 4253.4 | J8: =Tablo234[[#This Row],[HESAPLANAN GELİR VERGİSİ]]-Tablo234[[#This Row],[ASGARİ ÜCRETİN VERGİSİ]] -> 581.60548 | K8: =(Tablo234[[#This Row],[SGK MATRAH]]-5004)*0.00759 -> 16.47188367 | L8: =Tablo234[[#This Row],[SGK MATRAH]]-Tablo234[[#This Row],[SGK İŞÇİ]]-Tablo234[[#This Row],[KESİLECEK GELİR VERGİSİ]]-Tablo234[[#This Row],[DAMGA VERGİSİ]] -> 5499.999991 | M8: 1112.002341 | N8: 143.484173 | O8: 8429.695167
A9: ağustos | B9: 7023.467289 | C9: 1053.520093 | D9: =Tablo234[[#This Row],[SGK MATRAH]]-Tablo234[[#This Row],[SGK İŞÇİ]] -> 5969.947196 | E9: 46633.91317 | F9: =gelir_vergisi(Tablo234[[#This Row],[MATRAH]],Tablo234[[#This Row],[KÜMÜLATİF GV MATRAH]]) -> 1193.98944 | G9: 34027.2 | H9: 739.37 | I9: 4253.4 | J9: =Tablo234[[#This Row],[HESAPLANAN GELİR VERGİSİ]]-Tablo234[[#This Row],[ASGARİ ÜCRETİN VERGİSİ]] -> 454.61944 | K9: =(Tablo234[[#This Row],[SGK MATRAH]]-5004)*0.00759 -> 15.32775673 | L9: =Tablo234[[#This Row],[SGK MATRAH]]-Tablo234[[#This Row],[SGK İŞÇİ]]-Tablo234[[#This Row],[KESİLECEK GELİR VERGİSİ]]-Tablo234[[#This Row],[DAMGA VERGİSİ]] -> 5499.999999 | M9: 1088.63743 | N9: 140.4693458 | O9: 8252.574065
A10: eylül | B10: 6857.928407 | C10: 1028.689261 | D10: =Tablo234[[#This Row],[SGK MATRAH]]-Tablo234[[#This Row],[SGK İŞÇİ]] -> 5829.239146 | E10: 52463.15231 | F10: =gelir_vergisi(Tablo234[[#This Row],[MATRAH]],Tablo234[[#This Row],[KÜMÜLATİF GV MATRAH]]) -> 1165.84782 | G10: 38280.6 | H10: 850.68 | I10: 4253.4 | J10: =Tablo234[[#This Row],[HESAPLANAN GELİR VERGİSİ]]-Tablo234[[#This Row],[ASGARİ ÜCRETİN VERGİSİ]] -> 315.16782 | K10: =(Tablo234[[#This Row],[SGK MATRAH]]-5004)*0.00759 -> 14.07131661 | L10: =Tablo234[[#This Row],[SGK MATRAH]]-Tablo234[[#This Row],[SGK İŞÇİ]]-Tablo234[[#This Row],[KESİLECEK GELİR VERGİSİ]]-Tablo234[[#This Row],[DAMGA VERGİSİ]] -> 5500.000009 | M10: 1062.978903 | N10: 137.1585681 | O10: 8058.065878
A11: ekim | B11: 6857.928407 | C11: 1028.689261 | D11: =Tablo234[[#This Row],[SGK MATRAH]]-Tablo234[[#This Row],[SGK İŞÇİ]] -> 5829.239146 | E11: 58292.39146 | F11: =gelir_vergisi(Tablo234[[#This Row],[MATRAH]],Tablo234[[#This Row],[KÜMÜLATİF GV MATRAH]]) -> 1165.84782 | G11: 42534 | H11: 850.68 | I11: 4253.4 | J11: =Tablo234[[#This Row],[HESAPLANAN GELİR VERGİSİ]]-Tablo234[[#This Row],[ASGARİ ÜCRETİN VERGİSİ]] -> 315.16782 | K11: =(Tablo234[[#This Row],[SGK MATRAH]]-5004)*0.00759 -> 14.07131661 | L11: =Tablo234[[#This Row],[SGK MATRAH]]-Tablo234[[#This Row],[SGK İŞÇİ]]-Tablo234[[#This Row],[KESİLECEK GELİR VERGİSİ]]-Tablo234[[#This Row],[DAMGA VERGİSİ]] -> 5500.000009 | M11: 1062.978903 | N11: 137.1585681 | O11: 8058.065878
A12: kasım | B12: 6857.928407 | C12: 1028.689261 | D12: =Tablo234[[#This Row],[SGK MATRAH]]-Tablo234[[#This Row],[SGK İŞÇİ]] -> 5829.239146 | E12: 64121.6306 | F12: =gelir_vergisi(Tablo234[[#This Row],[MATRAH]],Tablo234[[#This Row],[KÜMÜLATİF GV MATRAH]]) -> 1165.84782 | G12: 46787.4 | H12: 850.68 | I12: 4253.4 | J12: =Tablo234[[#This Row],[HESAPLANAN GELİR VERGİSİ]]-Tablo234[[#This Row],[ASGARİ ÜCRETİN VERGİSİ]] -> 315.16782 | K12: =(Tablo234[[#This Row],[SGK MATRAH]]-5004)*0.00759 -> 14.07131661 | L12: =Tablo234[[#This Row],[SGK MATRAH]]-Tablo234[[#This Row],[SGK İŞÇİ]]-Tablo234[[#This Row],[KESİLECEK GELİR VERGİSİ]]-Tablo234[[#This Row],[DAMGA VERGİSİ]] -> 5500.000009 | M12: 1062.978903 | N12: 137.1585681 | O12: 8058.065878
A13: aralık | B13: 6857.928407 | C13: 1028.689261 | D13: =Tablo234[[#This Row],[SGK MATRAH]]-Tablo234[[#This Row],[SGK İŞÇİ]] -> 5829.239146 | E13: 69950.86975 | F13: =gelir_vergisi(Tablo234[[#This Row],[MATRAH]],Tablo234[[#This Row],[KÜMÜLATİF GV MATRAH]]) -> 1165.84782 | G13: 51040.8 | H13: 850.68 | I13: 4253.4 | J13: =Tablo234[[#This Row],[HESAPLANAN GELİR VERGİSİ]]-Tablo234[[#This Row],[ASGARİ ÜCRETİN VERGİSİ]] -> 315.16782 | K13: =(Tablo234[[#This Row],[SGK MATRAH]]-5004)*0.00759 -> 14.07131661 | L13: =Tablo234[[#This Row],[SGK MATRAH]]-Tablo234[[#This Row],[SGK İŞÇİ]]-Tablo234[[#This Row],[KESİLECEK GELİR VERGİSİ]]-Tablo234[[#This Row],[DAMGA VERGİSİ]] -> 5500.000009 | M13: 1062.978903 | N13: 137.1585681 | O13: 8058.065878 | Q13: www.vizyonkurumsal.com.tr
A14: TOPLAM | B14: =SUBTOTAL(109,Tablo234[SGK MATRAH]) -> 82295.14088 | C14: =SUBTOTAL(109,Tablo234[SGK İŞÇİ]) -> 12344.27113 | D14: =SUBTOTAL(109,Tablo234[MATRAH]) -> 69950.86975 | E14: =SUBTOTAL(109,Tablo234[KÜMÜLATİF GV MATRAH]) -> 452725.1908 | F14: =SUBTOTAL(109,Tablo234[HESAPLANAN GELİR VERGİSİ]) -> 12390.17392 | G14: =SUBTOTAL(109,Tablo234[ASGARİ ÜCRET KÜMÜLATİF MATRAH]) -> 331765.2 | H14: =SUBTOTAL(109,Tablo234[ASGARİ ÜCRETİN VERGİSİ]) -> 8608.16 | I14: =SUBTOTAL(109,Tablo234[İSTİSNA MATRAH]) -> 51040.8 | J14: =SUM(Tablo234[[#Totals],[ASGARİ ÜCRET KÜMÜLATİF MATRAH]:[İSTİSNA MATRAH]]) -> 391414.16 | K14: =SUBTOTAL(109,Tablo234[DAMGA VERGİSİ]) -> 168.8557993 | L14: =SUBTOTAL(109,Tablo234[NET ÜCRET]) -> 66000.00003 | M14: =SUBTOTAL(109,Tablo234[SGK İŞVEREN]) -> 12755.74684 | N14: =SUBTOTAL(109,Tablo234[İŞVEREN İŞSİZLİK]) -> 1645.902818 | O14: =SUBTOTAL(109,Tablo234[İŞVEREN TOPLAM MALİYET]) -> 96696.79053
O15: =AVERAGE(Tablo234[İŞVEREN TOPLAM MALİYET]) -> 8058.065878

Sheet brüt>net
A1: 2022 | B1: SGK MATRAH | C1: SGK İŞÇİ | D1: MATRAH | E1: KÜMÜLATİF GV MATRAH | F1: HESAPLANAN GELİR VERGİSİ | G1: ASGARİ ÜCRET KÜMÜLATİF MATRAH | H1: ASGARİ ÜCRETİN VERGİSİ | I1: İSTİSNA MATRAH | J1: KESİLECEK GELİR VERGİSİ | K1: DAMGA VERGİSİ | L1: NET ÜCRET | M1: SGK İŞVEREN | N1: İŞVEREN İŞSİZLİK | O1: İŞVEREN TOPLAM MALİYET
A2: ocak | B2: 6500 | C2: =IF(B2<37530,B2*0.15,37530*0.15) -> 975 | D2: =Tablo2345[[#This Row],[SGK MATRAH]]-Tablo2345[[#This Row],[SGK İŞÇİ]] -> 5525 | E2: =D2 -> 5525 | F2: =gelir_vergisi(Tablo2345[[#This Row],[MATRAH]],Tablo2345[[#This Row],[KÜMÜLATİF GV MATRAH]]) -> 828.75 | G2: 4253.4 | H2: 638.01 | I2: 4253.4 | J2: =Tablo2345[[#This Row],[HESAPLANAN GELİR VERGİSİ]]-Tablo2345[[#This Row],[ASGARİ ÜCRETİN VERGİSİ]] -> 190.74 | K2: =(Tablo2345[[#This Row],[SGK MATRAH]]-5004)*0.00759 -> 11.35464 | L2: =Tablo2345[[#This Row],[SGK MATRAH]]-Tablo2345[[#This Row],[SGK İŞÇİ]]-Tablo2345[[#This Row],[KESİLECEK GELİR VERGİSİ]]-Tablo2345[[#This Row],[DAMGA VERGİSİ]] -> 5322.90536 | M2: =IF(B2<37530,B2*0.155,37530*0.155) -> 1007.5 | N2: =IF(B2<37530,B2*0.02,37530*0.02) -> 130 | O2: =B2+M2+N2 -> 7637.5
A3: şubat | B3: 6500 | C3: 975 | D3: =Tablo2345[[#This Row],[SGK MATRAH]]-Tablo2345[[#This Row],[SGK İŞÇİ]] -> 5525 | E3: =D3+E2 -> 11050 | F3: =gelir_vergisi(Tablo2345[[#This Row],[MATRAH]],Tablo2345[[#This Row],[KÜMÜLATİF GV MATRAH]]) -> 828.75 | G3: =G2+4253.4 -> 8506.8 | H3: 638.01 | I3: 4253.4 | J3: =Tablo2345[[#This Row],[HESAPLANAN GELİR VERGİSİ]]-Tablo2345[[#This Row],[ASGARİ ÜCRETİN VERGİSİ]] -> 190.74 | K3: =(Tablo2345[[#This Row],[SGK MATRAH]]-5004)*0.00759 -> 11.35464 | L3: =Tablo2345[[#This Row],[SGK MATRAH]]-Tablo2345[[#This Row],[SGK İŞÇİ]]-Tablo2345[[#This Row],[KESİLECEK GELİR VERGİSİ]]-Tablo2345[[#This Row],[DAMGA VERGİSİ]] -> 5322.90536 | M3: 1007.5 | N3: 130 | O3: 7637.5
A4: mart | B4: 6500 | C4: 975 | D4: =Tablo2345[[#This Row],[SGK MATRAH]]-Tablo2345[[#This Row],[SGK İŞÇİ]] -> 5525 | E4: 16575 | F4: =gelir_vergisi(Tablo2345[[#This Row],[MATRAH]],Tablo2345[[#This Row],[KÜMÜLATİF GV MATRAH]]) -> 828.75 | G4: =G3+4253.4 -> 12760.2 | H4: 638.01 | I4: 4253.4 | J4: =Tablo2345[[#This Row],[HESAPLANAN GELİR VERGİSİ]]-Tablo2345[[#This Row],[ASGARİ ÜCRETİN VERGİSİ]] -> 190.74 | K4: =(Tablo2345[[#This Row],[SGK MATRAH]]-5004)*0.00759 -> 11.35464 | L4: =Tablo2345[[#This Row],[SGK MATRAH]]-Tablo2345[[#This Row],[SGK İŞÇİ]]-Tablo2345[[#This Row],[KESİLECEK GELİR VERGİSİ]]-Tablo2345[[#This Row],[DAMGA VERGİSİ]] -> 5322.90536 | M4: 1007.5 | N4: 130 | O4: 7637.5
A5: nisan | B5: 6500 | C5: 975 | D5: =Tablo2345[[#This Row],[SGK MATRAH]]-Tablo2345[[#This Row],[SGK İŞÇİ]] -> 5525 | E5: 22100 | F5: =gelir_vergisi(Tablo2345[[#This Row],[MATRAH]],Tablo2345[[#This Row],[KÜMÜLATİF GV MATRAH]]) -> 828.75 | G5: 17013.6 | H5: 638.01 | I5: 4253.4 | J5: =Tablo2345[[#This Row],[HESAPLANAN GELİR VERGİSİ]]-Tablo2345[[#This Row],[ASGARİ ÜCRETİN VERGİSİ]] -> 190.74 | K5: =(Tablo2345[[#This Row],[SGK MATRAH]]-5004)*0.00759 -> 11.35464 | L5: =Tablo2345[[#This Row],[SGK MATRAH]]-Tablo2345[[#This Row],[SGK İŞÇİ]]-Tablo2345[[#This Row],[KESİLECEK GELİR VERGİSİ]]-Tablo2345[[#This Row],[DAMGA VERGİSİ]] -> 5322.90536 | M5: 1007.5 | N5: 130 | O5: 7637.5
A6: mayıs | B6: 6500 | C6: 975 | D6: =Tablo2345[[#This Row],[SGK MATRAH]]-Tablo2345[[#This Row],[SGK İŞÇİ]] -> 5525 | E6: 27625 | F6: =gelir_vergisi(Tablo2345[[#This Row],[MATRAH]],Tablo2345[[#This Row],[KÜMÜLATİF GV MATRAH]]) -> 828.75 | G6: 21267 | H6: 638.01 | I6: 4253.4 | J6: =Tablo2345[[#This Row],[HESAPLANAN GELİR VERGİSİ]]-Tablo2345[[#This Row],[ASGARİ ÜCRETİN VERGİSİ]] -> 190.74 | K6: =(Tablo2345[[#This Row],[SGK MATRAH]]-5004)*0.00759 -> 11.35464 | L6: =Tablo2345[[#This Row],[SGK MATRAH]]-Tablo2345[[#This Row],[SGK İŞÇİ]]-Tablo2345[[#This Row],[KESİLECEK GELİR VERGİSİ]]-Tablo2345[[#This Row],[DAMGA VERGİSİ]] -> 5322.90536 | M6: 1007.5 | N6: 130 | O6: 7637.5
A7: haziran | B7: 6500 | C7: 975 | D7: =Tablo2345[[#This Row],[SGK MATRAH]]-Tablo2345[[#This Row],[SGK İŞÇİ]] -> 5525 | E7: 33150 | F7: =gelir_vergisi(Tablo2345[[#This Row],[MATRAH]],Tablo2345[[#This Row],[KÜMÜLATİF GV MATRAH]]) -> 886.25 | G7: 25520.4 | H7: 638.01 | I7: 4253.4 | J7: =Tablo2345[[#This Row],[HESAPLANAN GELİR VERGİSİ]]-Tablo2345[[#This Row],[ASGARİ ÜCRETİN VERGİSİ]] -> 248.24 | K7: =(Tablo2345[[#This Row],[SGK MATRAH]]-5004)*0.00759 -> 11.35464 | L7: =Tablo2345[[#This Row],[SGK MATRAH]]-Tablo2345[[#This Row],[SGK İŞÇİ]]-Tablo2345[[#This Row],[KESİLECEK GELİR VERGİSİ]]-Tablo2345[[#This Row],[DAMGA VERGİSİ]] -> 5265.40536 | M7: 1007.5 | N7: 130 | O7: 7637.5
A8: temmuz | B8: 6500 | C8: 975 | D8: =Tablo2345[[#This Row],[SGK MATRAH]]-Tablo2345[[#This Row],[SGK İŞÇİ]] -> 5525 | E8: 38675 | F8: =gelir_vergisi(Tablo2345[[#This Row],[MATRAH]],Tablo2345[[#This Row],[KÜMÜLATİF GV MATRAH]]) -> 1105 | G8: 29773.8 | H8: 638.01 | I8: 4253.4 | J8: =Tablo2345[[#This Row],[HESAPLANAN GELİR VERGİSİ]]-Tablo2345[[#This Row],[ASGARİ ÜCRETİN VERGİSİ]] -> 466.99 | K8: =(Tablo2345[[#This Row],[SGK MATRAH]]-5004)*0.00759 -> 11.35464 | L8: =Tablo2345[[#This Row],[SGK MATRAH]]-Tablo2345[[#This Row],[SGK İŞÇİ]]-Tablo2345[[#This Row],[KESİLECEK GELİR VERGİSİ]]-Tablo2345[[#This Row],[DAMGA VERGİSİ]] -> 5046.65536 | M8: 1007.5 | N8: 130 | O8: 7637.5
A9: ağustos | B9: 6500 | C9: 975 | D9: =Tablo2345[[#This Row],[SGK MATRAH]]-Tablo2345[[#This Row],[SGK İŞÇİ]] -> 5525 | E9: 44200 | F9: =gelir_vergisi(Tablo2345[[#This Row],[MATRAH]],Tablo2345[[#This Row],[KÜMÜLATİF GV MATRAH]]) -> 1105 | G9: 34027.2 | H9: 739.37 | I9: 4253.4 | J9: =Tablo2345[[#This Row],[HESAPLANAN GELİR VERGİSİ]]-Tablo2345[[#This Row],[ASGARİ ÜCRETİN VERGİSİ]] -> 365.63 | K9: =(Tablo2345[[#This Row],[SGK MATRAH]]-5004)*0.00759 -> 11.35464 | L9: =Tablo2345[[#This Row],[SGK MATRAH]]-Tablo2345[[#This Row],[SGK İŞÇİ]]-Tablo2345[[#This Row],[KESİLECEK GELİR VERGİSİ]]-Tablo2345[[#This Row],[DAMGA VERGİSİ]] -> 5148.01536 | M9: 1007.5 | N9: 130 | O9: 7637.5
A10: eylül | B10: 6500 | C10: 975 | D10: =Tablo2345[[#This Row],[SGK MATRAH]]-Tablo2345[[#This Row],[SGK İŞÇİ]] -> 5525 | E10: 49725 | F10: =gelir_vergisi(Tablo2345[[#This Row],[MATRAH]],Tablo2345[[#This Row],[KÜMÜLATİF GV MATRAH]]) -> 1105 | G10: 38280.6 | H10: 850.68 | I10: 4253.4 | J10: =Tablo2345[[#This Row],[HESAPLANAN GELİR VERGİSİ]]-Tablo2345[[#This Row],[ASGARİ ÜCRETİN VERGİSİ]] -> 254.32 | K10: =(Tablo2345[[#This Row],[SGK MATRAH]]-5004)*0.00759 -> 11.35464 | L10: =Tablo2345[[#This Row],[SGK MATRAH]]-Tablo2345[[#This Row],[SGK İŞÇİ]]-Tablo2345[[#This Row],[KESİLECEK GELİR VERGİSİ]]-Tablo2345[[#This Row],[DAMGA VERGİSİ]] -> 5259.32536 | M10: 1007.5 | N10: 130 | O10: 7637.5
A11: ekim | B11: 6500 | C11: 975 | D11: =Tablo2345[[#This Row],[SGK MATRAH]]-Tablo2345[[#This Row],[SGK İŞÇİ]] -> 5525 | E11: 55250 | F11: =gelir_vergisi(Tablo2345[[#This Row],[MATRAH]],Tablo2345[[#This Row],[KÜMÜLATİF GV MATRAH]]) -> 1105 | G11: 42534 | H11: 850.68 | I11: 4253.4 | J11: =Tablo2345[[#This Row],[HESAPLANAN GELİR VERGİSİ]]-Tablo2345[[#This Row],[ASGARİ ÜCRETİN VERGİSİ]] -> 254.32 | K11: =(Tablo2345[[#This Row],[SGK MATRAH]]-5004)*0.00759 -> 11.35464 | L11: =Tablo2345[[#This Row],[SGK MATRAH]]-Tablo2345[[#This Row],[SGK İŞÇİ]]-Tablo2345[[#This Row],[KESİLECEK GELİR VERGİSİ]]-Tablo2345[[#This Row],[DAMGA VERGİSİ]] -> 5259.32536 | M11: 1007.5 | N11: 130 | O11: 7637.5
A12: kasım | B12: 6500 | C12: 975 | D12: =Tablo2345[[#This Row],[SGK MATRAH]]-Tablo2345[[#This Row],[SGK İŞÇİ]] -> 5525 | E12: 60775 | F12: =gelir_vergisi(Tablo2345[[#This Row],[MATRAH]],Tablo2345[[#This Row],[KÜMÜLATİF GV MATRAH]]) -> 1105 | G12: 46787.4 | H12: 850.68 | I12: 4253.4 | J12: =Tablo2345[[#This Row],[HESAPLANAN GELİR VERGİSİ]]-Tablo2345[[#This Row],[ASGARİ ÜCRETİN VERGİSİ]] -> 254.32 | K12: =(Tablo2345[[#This Row],[SGK MATRAH]]-5004)*0.00759 -> 11.35464 | L12: =Tablo2345[[#This Row],[SGK MATRAH]]-Tablo2345[[#This Row],[SGK İŞÇİ]]-Tablo2345[[#This Row],[KESİLECEK GELİR VERGİSİ]]-Tablo2345[[#This Row],[DAMGA VERGİSİ]] -> 5259.32536 | M12: 1007.5 | N12: 130 | O12: 7637.5
A13: aralık | B13: 6500 | C13: 975 | D13: =Tablo2345[[#This Row],[SGK MATRAH]]-Tablo2345[[#This Row],[SGK İŞÇİ]] -> 5525 | E13: 66300 | F13: =gelir_vergisi(Tablo2345[[#This Row],[MATRAH]],Tablo2345[[#This Row],[KÜMÜLATİF GV MATRAH]]) -> 1105 | G13: 51040.8 | H13: 850.68 | I13: 4253.4 | J13: =Tablo2345[[#This Row],[HESAPLANAN GELİR VERGİSİ]]-Tablo2345[[#This Row],[ASGARİ ÜCRETİN VERGİSİ]] -> 254.32 | K13: =(Tablo2345[[#This Row],[SGK MATRAH]]-5004)*0.00759 -> 11.35464 | L13: =Tablo2345[[#This Row],[SGK MATRAH]]-Tablo2345[[#This Row],[SGK İŞÇİ]]-Tablo2345[[#This Row],[KESİLECEK GELİR VERGİSİ]]-Tablo2345[[#This Row],[DAMGA VERGİSİ]] -> 5259.32536 | M13: 1007.5 | N13: 130 | O13: 7637.5 | Q13: www.vizyonkurumsal.com.tr
A14: Toplam | B14: =SUBTOTAL(109,Tablo2345[SGK MATRAH]) -> 78000 | C14: =SUBTOTAL(109,Tablo2345[SGK İŞÇİ]) -> 11700 | D14: =SUBTOTAL(109,Tablo2345[MATRAH]) -> 66300 | E14: =SUBTOTAL(109,Tablo2345[KÜMÜLATİF GV MATRAH]) -> 430950 | F14: =SUBTOTAL(109,Tablo2345[HESAPLANAN GELİR VERGİSİ]) -> 11660 | G14: =SUBTOTAL(109,Tablo2345[ASGARİ ÜCRET KÜMÜLATİF MATRAH]) -> 331765.2 | H14: =SUBTOTAL(109,Tablo2345[ASGARİ ÜCRETİN VERGİSİ]) -> 8608.16 | I14: =SUBTOTAL(109,Tablo2345[İSTİSNA MATRAH]) -> 51040.8 | J14: =SUM(Tablo2345[[#Totals],[ASGARİ ÜCRET KÜMÜLATİF MATRAH]:[İSTİSNA MATRAH]]) -> 391414.16 | K14: =SUBTOTAL(109,Tablo2345[DAMGA VERGİSİ]) -> 136.25568 | L14: =SUBTOTAL(109,Tablo2345[NET ÜCRET]) -> 63111.90432 | M14: =SUBTOTAL(109,Tablo2345[SGK İŞVEREN]) -> 12090 | N14: =SUBTOTAL(109,Tablo2345[İŞVEREN İŞSİZLİK]) -> 1560 | O14: =SUBTOTAL(109,Tablo2345[İŞVEREN TOPLAM MALİYET]) -> 91650
O15: =AVERAGE(Tablo2345[İŞVEREN TOPLAM MALİYET]) -> 7637.5
